[Event "Rosh Hashanah Rapid 2022"]
[Site "Ramat Gan"]
[Date "2022.09.25"]
[Round "2.1"]
[White "Vagman, Roy"]
[Black "Parkhov, Yair"]
[Result "1/2-1/2"]
[ECO "B28"]
[WhiteElo "2287"]
[BlackElo "2479"]
[Annotator "TA"]
[PlyCount "81"]
[EventDate "2022.09.25"]
[EventType "rapid"]
[EventCountry "ISR"]
[SourceTitle "playchess.com"]
[Source "ChessBase"]
[SourceQuality "1"]
[TimeControl "900+5"]

{[%evp 17,81,49,42,22,31,23,27,23,27,26,27,28,29,18,30,30,29,20,35,28,35,37,54,7,12,12,30,35,35,0,0,0,37,12,31,29,87,83,89,87,89,39,39,37,37,43,43,24,24,24,24,24,31,31,37,13,13,13,13,13,13,0,0,0,0,0]} 1. e4 {[%emt 0:00:03]} c5 {[%emt 0:00:53]} 2. Nf3 {[%emt 0:00:01]} a6 {[%emt 0:00:16]} 3. c4 {[%emt 0:00:40][%cal Bc2c4,Bc4d5][%mdl 32]} Nc6 {[%emt 0:00:06]} 4. d4 {[%emt 0:00:10]} cxd4 {[%emt 0:00:03]} 5. Nxd4 {[%emt 0:00:02]} e5 {[%emt 0:00:02]} 6. Nf5 {[%emt 0:00:54]} Nf6 {[%emt 0:00:02]} 7. Nc3 {[%emt 0:00:03]} d5 {[%emt 0:00:09]} 8. cxd5 {[%emt 0:01:01]} Bxf5 {[%emt 0:00:02]} 9. exf5 {[%emt 0:00:06]} Nd4 {[%emt 0:00:02]} 10. Bd3 {[%emt 0:01:00] B28: Sicilian: 2 Nf3 a6 (O'Kelly Variation).} Be7 $1 {[%emt 0:00:04][%mdl 4] now scores much better than the old 10...Nxd5.} 11. O-O {[%emt 0:00:20] next Re1 is good for White.} O-O $1 {[%emt 0:00:03]} 12. Be3 {[%emt 0:01:00] White has an edge.} Nxd5 {[%emt 0:00:21] [#]} 13. Bxd4 $146 {[%emt 0:01:31]} ({Predecessor:} 13. Nxd5 Qxd5 14. Qg4 Bf6 15. Rfd1 Rac8 16. Bh6 Qd7 17. Be4 Kh8 18. Bg5 Bxg5 19. Qxg5 {0-1 (46) Jerez Lopez,J (1977)-Guerrero Ruiz,J (1739) Las Palmas 2012}) 13... exd4 {[%emt 0:00:02]} 14. Nxd5 {[%emt 0:00:02]} Qxd5 {[%emt 0:00:02]} 15. Qg4 {[%emt 0:00:38]} Bf6 {[%emt 0:00:08]} 16. Qe4 {[%emt 0:01:28]} Qd7 {[%emt 0:01:00]} 17. Rac1 {[%emt 0:00:11]} Rfe8 {[%emt 0:00:14]} 18. Qf3 {[%emt 0:00:01]} Re7 {[%emt 0:00:14]} 19. g3 {[%emt 0:00:39]} Rae8 {[%emt 0:00:06]} 20. Qg4 {[%emt 0:00:44]} (20. Rc2 $14 {might be stronger.}) 20... Qd5 {[%emt 0:01:19]} 21. b3 {[%emt 0:00:22]} b5 {[%emt 0:00:13]} 22. Qh3 {[%emt 0:00:16]} Qf3 {[%emt 0:00:19]} 23. Rcd1 {[%emt 0:00:17]} (23. Rfd1 {keeps more tension.} Rc7 24. Rxc7 Qxd1+ 25. Qf1) 23... Qc6 {[%emt 0:01:01]} 24. Rc1 {[%emt 0:00:24]} Qb6 {[%emt 0:00:14]} (24... Qf3 $5 {[%cal Rf3d3]} 25. Rfd1 Rc7 26. Rxc7 Qxd1+ 27. Qf1 Qf3 $14) 25. Qg4 {[%emt 0:00:40]} Qa5 {[%emt 0:00:04]} 26. Rc2 {[%emt 0:00:08]} Re1 {[%emt 0:00:11]} (26... Rc7 $11) 27. Rxe1 $16 {[%emt 0:00:14]} Qxe1+ {[%emt 0:00:03]} 28. Kg2 {[%emt 0:00:03]} h6 {[%emt 0:00:53]} 29. Re2 {[%emt 0:00:44]} ({Better is} 29. Qf3 $16) 29... Rxe2 $14 {[%emt 0:00:05]} 30. Qxe2 {[%emt 0:00:01]} Qxe2 {[%emt 0:00:26]} 31. Bxe2 {[%emt 0:00:01][%mdl 4096] Endgame KB-KB} Kf8 {[%emt 0:00:01]} 32. a4 {[%emt 0:00:18]} bxa4 {[%emt 0:00:07]} 33. bxa4 {[%emt 0:00:03]} a5 {[%emt 0:00:02]} 34. Kf3 {[%emt 0:00:03]} Bd8 {[%emt 0:04:36]} 35. Ke4 {[%emt 0:00:06]} Bb6 {[%emt 0:00:01][%cal Od4d3]} 36. f4 {[%emt 0:00:25]} Ke7 {[%emt 0:00:05] The position is equal.} 37. Bc4 {[%emt 0:00:02]} Kf6 {[%emt 0:01:10]} 38. g4 {[%emt 0:00:16]} Ke7 {[%emt 0:00:09]} 39. h4 {[%emt 0:00:27]} f6 {[%emt 0:00:05]} 40. Kd5 {[%emt 0:00:03]} Bc7 {[%emt 0:00:05]} 41. Kxd4 {[%emt 0:00:24] Weighted Error Value: White=0.10 (very precise) /Black=0.08 (flawless)} 1/2-1/2

[Event "Rosh Hashanah Rapid 2022"]
[Site "Ramat Gan"]
[Date "2022.09.25"]
[Round "2.2"]
[White "Gorodetzky, David"]
[Black "Zak, Uriel"]
[Result "1-0"]
[ECO "A07"]
[WhiteElo "2495"]
[BlackElo "2262"]
[Annotator "TA"]
[PlyCount "75"]
[EventDate "2022.09.25"]
[EventType "rapid"]
[EventCountry "ISR"]
[SourceTitle "playchess.com"]
[Source "ChessBase"]
[SourceQuality "1"]
[TimeControl "900+5"]

{[%evp 9,75,14,21,8,10,6,11,0,17,-25,16,16,16,16,19,9,16,-27,-18,-13,24,0,15,-49,-41,-60,0,0,0,0,40,35,58,44,100,84,77,49,91,95,90,76,87,84,77,79,100,96,92,88,84,87,162,154,271,272,264,260,358,337,487,487,495,481,455,440,495,462]} 1. Nf3 {[%emt 0:00:03]} Nf6 {[%emt 0:00:07]} 2. b3 {[%emt 0:00:10]} d5 {[%emt 0:00:23]} 3. Bb2 {[%emt 0:00:03]} c6 {[%emt 0:00:08]} 4. g3 {[%emt 0:00:18]} Bg4 {[%emt 0:00:12]} 5. Bg2 {[%emt 0:00:12]} Nbd7 {[%emt 0:00:12]} 6. h3 {[%emt 0:01:05] A07: Réti Opening: New York and Capablanca Systems.} Bh5 {[%emt 0:00:38]} 7. d3 {[%emt 0:00:16] was the old line (7.0-0).} e6 {[%emt 0:00:05]} 8. Nbd2 {[%emt 0:00:09] The position is equal.} Bd6 {[%emt 0:00:17]} 9. e3 {[%emt 0:01:27]} Qc7 {[%emt 0:00:28]} 10. g4 {[%emt 0:00:17]} Bg6 {[%emt 0:00:03]} 11. Nh4 {[%emt 0:00:17]} e5 {[%emt 0:03:14]} 12. Qe2 {[%emt 0:00:10]} O-O-O {[%emt 0:01:23] [#]} 13. a3 $146 {[%emt 0:00:51]} ({Predecessor:} 13. O-O-O Nc5 14. Kb1 Rhe8 15. g5 Bh5 16. Bf3 Bxf3 17. Qxf3 Ng8 18. Qf5+ Ne6 19. Qxh7 {0-1 (46) Nippgen,G (2256)-Becking,S (2315) Germany 2003}) 13... Kb8 {[%emt 0:00:19]} 14. b4 {[%emt 0:00:38]} d4 {[%emt 0:01:26]} 15. Nc4 {[%emt 0:02:04]} Nb6 {[%emt 0:00:27]} 16. Rd1 {[%emt 0:03:02]} ({White should play} 16. Nxb6 $11 Qxb6 17. O-O) 16... Nfd5 $15 {[%emt 0:01:12]} 17. Ba1 {[%emt 0:01:15]} ({But not} 17. exd4 Nxc4 18. dxc4 Nf4 $17) 17... Na4 {[%emt 0:00:52]} (17... Be7 $15 18. Nxg6 hxg6) 18. Bxd5 $11 {[%emt 0:00:51]} cxd5 {[%emt 0:00:03]} 19. Nxd6 {[%emt 0:00:01]} Qxd6 {[%emt 0:00:36]} 20. exd4 {[%emt 0:00:48]} exd4 {[%emt 0:00:06]} 21. O-O {[%emt 0:00:16]} ({Wrong is} 21. Bxd4 $2 Rhe8 22. Be3 d4 $19) 21... Rhe8 {[%emt 0:00:15]} ({Better is} 21... Qf6 $14 22. Ng2 Nc3 23. Bxc3 dxc3) 22. Qf3 {[%emt 0:00:18]} Nc3 {[%emt 0:00:33]} 23. Rde1 {[%emt 0:00:03] Against Ne2+} (23. Bxc3 $5 dxc3 24. Rfe1 $11) 23... Re5 {[%emt 0:00:24]} 24. Nxg6 {[%emt 0:01:10]} fxg6 {[%emt 0:00:17]} 25. Bxc3 {[%emt 0:00:38]} (25. Rxe5 {is interesting.} Qxe5 26. Bxc3 dxc3 27. Qe3) 25... dxc3 {[%emt 0:00:11]} 26. d4 {[%emt 0:00:08][%csl LRc3,LRe5]} Re4 {[%emt 0:00:42]} 27. Qxc3 {[%emt 0:00:08]} Rc8 {[%emt 0:00:28]} 28. Qd3 {[%emt 0:00:16]} Qf4 {[%emt 0:00:35]} 29. Rxe4 {[%emt 0:00:28]} dxe4 $16 {[%emt 0:00:07][%mdl 4096] Endgame KQR-KQR} 30. Qe3 {[%emt 0:00:01]} g5 {[%emt 0:00:38] [#]} (30... Qxe3 $16 {was called for.} 31. fxe3 Rxc2) 31. Re1 $1 $18 {[%emt 0:00:08] Threatens to win with Qxf4+.} Rxc2 {[%emt 0:00:13]} (31... Qxe3 $16 32. Rxe3 Rxc2) 32. Qxf4+ {[%emt 0:00:02]} gxf4 {[%emt 0:00:02]} 33. Rxe4 $16 {[%emt 0:00:00] KR-KR} g5 {[%emt 0:00:03]} 34. Kg2 {[%emt 0:00:11]} Rc3 {[%emt 0:00:07]} (34... Rc8 {was worth a try.} 35. h4 Rg8 36. hxg5 Rxg5 37. Rxf4 h5) 35. Re5 $18 {[%emt 0:00:08] White is clearly winning.} h6 {[%emt 0:00:05]} 36. Re6 {[%emt 0:00:02]} Rxa3 {[%emt 0:01:14]} 37. Rxh6 {[%emt 0:00:01]} Ra4 {[%emt 0:00:24]} 38. h4 {[%emt 0:00:09] Weighted Error Value: White=0.10 (very precise) /Black=0.31} 1-0

[Event "Rosh Hashanah Rapid 2022"]
[Site "Ramat Gan"]
[Date "2022.09.25"]
[Round "2.3"]
[White "Ehrlich, Roy"]
[Black "Dvoirys, Semen I."]
[Result "0-1"]
[ECO "B30"]
[WhiteElo "2202"]
[BlackElo "2461"]
[Annotator "TA"]
[PlyCount "128"]
[EventDate "2022.09.25"]
[EventType "rapid"]
[EventCountry "ISR"]
[SourceTitle "playchess.com"]
[Source "ChessBase"]
[SourceQuality "1"]
[TimeControl "900+5"]

{[%evp 15,128,12,53,24,32,15,27,15,18,16,19,6,18,0,0,-12,-15,-37,0,-2,-43,0,0,0,10,10,17,12,22,16,18,0,0,-17,0,0,0,0,0,0,0,0,0,0,0,0,0,0,0,-6,17,0,0,-38,-41,-37,-46,-37,-49,-56,-41,-50,-42,-59,-62,-75,-37,-35,-49,-43,-44,-176,-57,-50,-45,-47,0,-8,0,0,0,0,0,0,1,3,109,110,110,110,122,123,102,48,36,37,37,38,1068,556,907,843,697,35,35,-8,-4,-919,-739,-828,-914,-866,-727,-659,-595]} 1. e4 {[%emt 0:00:02]} c5 {[%emt 0:00:01]} 2. Nf3 {[%emt 0:00:02]} Nc6 {[%emt 0:00:07]} 3. Bb5 {[%emt 0:00:02]} e6 {[%emt 0:00:03]} 4. O-O {[%emt 0:00:03]} Nge7 {[%emt 0:00:01]} 5. Re1 {[%emt 0:00:03]} a6 {[%emt 0:00:03]} 6. Bf1 {[%emt 0:00:02]} d5 {[%emt 0:00:17]} 7. exd5 {[%emt 0:00:02]} Nxd5 {[%emt 0:00:05]} 8. d4 {[%emt 0:00:04]} Be7 {[%emt 0:02:19]} 9. c4 {[%emt 0:00:05] B30: Sicilian: 2...Nc6 3 Bb5, lines without ...g6.} Nf6 {[%emt 0:00:06][%cal Rc5d4]} 10. Be3 {[%emt 0:00:07]} O-O {[%emt 0:00:21]} 11. Nc3 {[%emt 0:00:31] White has an edge.} cxd4 {[%emt 0:00:22]} 12. Nxd4 {[%emt 0:00:01]} Bd7 {[%emt 0:00:19] 12...Ne5 might become the main line.} 13. Nb3 {[%emt 0:00:49]} Ne5 {[%emt 0:02:34] [#]} 14. Bf4 $146 {[%emt 0:01:01]} ({Predecessor:} 14. h3 Rc8 15. Qd4 Nc6 16. Qd2 Ne5 17. c5 Bc6 18. Rad1 Qxd2 19. Rxd2 Rfd8 20. Na5 Rxd2 21. Bxd2 {1-0 (57) Plenca,J (2477)-Sveshnikov,E (2496) Bled 2018}) 14... Ng6 {[%emt 0:00:06]} 15. Be3 {[%emt 0:01:40]} Qc7 {[%emt 0:00:16]} 16. Qd4 {[%emt 0:01:34]} Bd6 {[%emt 0:00:44]} 17. h3 {[%emt 0:00:21]} Bh2+ {[%emt 0:00:09]} 18. Kh1 {[%emt 0:00:01]} Be5 {[%emt 0:00:01]} 19. Qb6 {[%emt 0:01:07]} Rac8 {[%emt 0:00:14]} 20. Rad1 {[%emt 0:00:39]} Bc6 {[%emt 0:00:09]} 21. Qxc7 {[%emt 0:01:46]} Bxc7 {[%emt 0:00:15][%cal Be5c7,Bc7a5,Ba5b4][%mdl 32]} 22. Nd4 {[%emt 0:00:33]} Bd7 {[%emt 0:00:24]} 23. g3 {[%emt 0:00:16]} Ba5 {[%emt 0:00:15]} 24. Kh2 {[%emt 0:00:26]} Ne5 {[%emt 0:01:01]} 25. c5 {[%emt 0:01:06]} Bb4 {[%emt 0:00:47]} 26. Bf4 {[%emt 0:00:41]} Ng6 {[%emt 0:00:17]} 27. Bd6 {[%emt 0:00:03]} Rfd8 {[%emt 0:00:02]} 28. Nb3 {[%emt 0:00:14]} Ne8 {[%emt 0:00:12]} 29. Re4 {[%emt 0:00:51]} Bxc3 {[%emt 0:00:23]} 30. bxc3 {[%emt 0:00:01]} Nxd6 {[%emt 0:01:35]} 31. Rxd6 {[%emt 0:00:02]} Bc6 {[%emt 0:00:09]} 32. Red4 {[%emt 0:00:28]} Re8 {[%emt 0:00:19]} 33. Bg2 {[%emt 0:01:12]} Ne5 {[%emt 0:00:22]} 34. Bxc6 {[%emt 0:00:12]} Nxc6 {[%emt 0:00:01]} 35. Rd1 {[%emt 0:00:24]} Kf8 {[%emt 0:00:02]} 36. Rd7 {[%emt 0:00:02]} Re7 {[%emt 0:00:02]} 37. Kg2 {[%emt 0:00:32]} Ke8 {[%emt 0:00:01]} 38. R7d6 {[%emt 0:00:08]} Rec7 {[%emt 0:00:11]} 39. f4 {[%emt 0:00:23]} Nb8 {[%emt 0:00:45]} 40. Na5 {[%emt 0:00:28]} Rxc5 {[%emt 0:00:08]} (40... Ke7 $5 {[%cal Rc7c5]} 41. Rb6 Nd7 42. Rxb7 Rxb7 43. Nxb7 Nxc5 44. Nxc5 Rxc5 $15) 41. Nxb7 {[%emt 0:00:04]} Rxc3 {[%emt 0:00:02]} 42. Rb6 {[%emt 0:00:17]} Rc2+ {[%emt 0:00:09]} 43. Kf3 {[%emt 0:00:00]} ({White should play} 43. Kf1 $15 Kf8 44. Ke1) 43... Kf8 {[%emt 0:01:15]} ({Not} 43... R8c3+ 44. Kg4 Nd7 45. Nd6+ Ke7 46. Rb7) (43... Ke7 $19 {Strongly threatening ...R8c3+.} 44. Nd6 R8c3+ 45. Kg4 Nd7) 44. Nd6 $15 {[%emt 0:00:06]} Rd8 {[%emt 0:00:07]} 45. Rb7 {[%emt 0:00:04]} Kg8 {[%emt 0:00:11]} (45... f6 $15 {is more appropriate.} 46. Rf7+ Kg8) 46. Rdb1 {[%emt 0:00:02]} Nc6 {[%emt 0:00:40]} 47. Nxf7 {[%emt 0:00:02]} Rd3+ {[%emt 0:00:08]} 48. Kg4 {[%emt 0:00:07] Ng5 is the strong threat.} Rg2 {[%emt 0:00:03]} (48... Rxa2 $2 49. Ng5 $18) 49. Ng5 {[%emt 0:00:01][%cal Ob7b8] And now Rb8+! would win.} Rgxg3+ {[%emt 0:00:23]} ({Don't do} 49... Rdxg3+ 50. Kh4 Rxg5 51. fxg5 $16) 50. Kh4 {[%emt 0:00:01][%cal Ob7b8] aiming for Rb8+!} h6 {[%emt 0:00:01] [#]} (50... g6 $1 $11 51. Rc7 h6 52. Rc8+ Nd8 53. Rxd8+ Rxd8 54. Kxg3 hxg5) 51. Rb8+ $1 $16 {[%emt 0:00:06][%mdl 512]} Nd8 {[%emt 0:00:01] [#]} 52. Nxe6 {[%emt 0:00:07]} ({Don't play} 52. Rxd8+ $6 Rxd8 53. Kxg3 hxg5 $11) 52... Rxh3+ {[%emt 0:00:05]} 53. Kg4 {[%emt 0:00:00]} h5+ {[%emt 0:00:47] [#]} 54. Kf5 {[%emt 0:00:02]} (54. Kg5 $1 $16 Rhg3+ 55. Kxh5) 54... Rd5+ $14 {[%emt 0:00:04]} 55. Ke4 {[%emt 0:00:01]} Rhd3 {[%emt 0:00:02]} 56. R1b7 {[%emt 0:00:10]} Rd6 $2 {[%emt 0:00:06][%mdl 8192]} (56... Kh7 $14 57. Rxg7+ Kh6) 57. Rxg7+ $18 {[%emt 0:00:03]} Kh8 {[%emt 0:00:00]} 58. Re7 {[%emt 0:00:02]} Rd1 {[%emt 0:00:06]} 59. Re8+ $2 {[%emt 0:00:02]} ({Better is} 59. Kf5 $18) 59... Kh7 $14 {[%emt 0:00:03]} 60. Re7+ {[%emt 0:00:30]} Kg6 {[%emt 0:00:05] Threatens to win with ...Re1+.} 61. Nxd8 $2 {[%emt 0:00:13][%mdl 8192]} (61. f5+ $11 Kf6 62. Rh7) 61... Re1+ $19 {[%emt 0:00:02][%mdl 64] Skewer. Black is clearly winning.} 62. Kf3 {[%emt 0:00:02]} Rxe7 {[%emt 0:00:01]} 63. Nb7 {[%emt 0:00:02]} Rb6 {[%emt 0:00:02]} 64. Rg8+ {[%emt 0:00:02]} Kh7 {[%emt 0:00:01] Weighted Error Value: White=0.37/Black=0.13 (very precise)} 0-1

[Event "Rosh Hashanah Rapid 2022"]
[Site "Ramat Gan"]
[Date "2022.09.25"]
[Round "2.4"]
[White "Sokolovsky, Yahli"]
[Black "Kaganskiy, Gleb"]
[Result "1-0"]
[ECO "B06"]
[WhiteElo "2419"]
[BlackElo "2225"]
[Annotator "TA"]
[PlyCount "53"]
[EventDate "2022.09.25"]
[EventType "rapid"]
[EventCountry "ISR"]
[SourceTitle "playchess.com"]
[Source "ChessBase"]
[SourceQuality "1"]
[TimeControl "900+5"]

{[%evp 9,53,35,35,33,29,11,45,42,65,60,64,72,56,41,42,38,91,93,83,84,81,89,93,80,117,118,222,213,212,210,227,209,216,187,391,319,558,561,555,546,546,437,529,517,595,491]} 1. e4 {[%emt 0:00:01]} g6 {[%emt 0:00:03]} 2. d4 {[%emt 0:00:04]} Nf6 {[%emt 0:00:05]} 3. e5 {[%emt 0:00:11]} Nh5 {[%emt 0:00:01]} 4. Nf3 {[%emt 0:00:18]} d6 {[%emt 0:00:02] [#]} 5. Bd3 $146 {[%emt 0:00:44]} ({Predecessor:} 5. Bc4 Nc6 6. Qe2 Bg7 7. O-O dxe5 8. dxe5 Nd4 9. Bxf7+ Kxf7 10. Qc4+ Be6 11. Ng5+ Ke8 12. Nxe6 Nxe6 13. Qxe6 Qd4 14. Qb3 b6 15. e6 Nf4 16. Qb5+ Kf8 17. Nc3 Nxg2 18. Qc6 {1-0 (18) Giri,A (2764)-Svidler,P (2723) chess24.com INT 2020}) 5... dxe5 {[%emt 0:00:34]} 6. dxe5 {[%emt 0:00:08] B06: Modern Defence.} Nc6 {[%emt 0:00:19]} 7. h3 {[%emt 0:00:11]} Bf5 {[%emt 0:00:45]} 8. Nc3 {[%emt 0:00:50] White is slightly better.} Bxd3 {[%emt 0:00:19]} 9. cxd3 {[%emt 0:00:04]} ({Don't play} 9. Qxd3 Qxd3 10. cxd3 O-O-O $11) 9... Qd7 {[%emt 0:01:04]} 10. O-O {[%emt 0:03:01]} O-O-O {[%emt 0:00:03]} 11. Qb3 {[%emt 0:00:24]} e6 {[%emt 0:00:43]} 12. Rd1 {[%emt 0:02:25]} Nd4 {[%emt 0:01:35]} (12... h6 $14) 13. Nxd4 $16 {[%emt 0:00:01]} Qxd4 {[%emt 0:00:02]} 14. Nb5 {[%emt 0:00:04]} Qd5 {[%emt 0:00:49]} 15. Nxa7+ {[%emt 0:02:34]} Kb8 {[%emt 0:00:02]} 16. Nb5 {[%emt 0:00:01]} Qxb3 {[%emt 0:00:32]} 17. axb3 {[%emt 0:00:01]} Rd5 {[%emt 0:02:10]} (17... c6 $16) 18. Nc3 $40 {[%emt 0:00:06][%mdl 128] White has strong attack.} Rxe5 {[%emt 0:00:02]} 19. d4 {[%emt 0:00:33]} Rd5 {[%emt 0:00:31]} 20. Nxd5 {[%emt 0:00:12]} exd5 {[%emt 0:00:01]} 21. Ra5 {[%emt 0:00:30]} Nf6 $2 {[%emt 0:01:22]} (21... Bd6 22. Be3 (22. Rxd5 b6 $16) 22... c6) 22. Bg5 {[%emt 0:00:25]} Ne4 $2 {[%emt 0:00:04] [#]} (22... Nd7 {might work better.} 23. Rda1 Nb6) 23. Rda1 $1 {[%emt 0:00:14][%csl Ga1][%cal Ra5a8] White is clearly winning.} b6 {[%emt 0:00:09]} 24. Ra8+ {[%emt 0:00:09]} Kb7 {[%emt 0:00:01]} 25. R1a7+ {[%emt 0:00:47]} Kc6 {[%emt 0:00:02]} 26. Bf4 {[%emt 0:00:07]} Nd6 {[%emt 0:00:13]} 27. Bxd6 {[%emt 0:00:06] Weighted Error Value: White=0.16 (very precise) /Black=0.45} 1-0

[Event "Rosh Hashanah Rapid 2022"]
[Site "Ramat Gan"]
[Date "2022.09.25"]
[Round "2.5"]
[White "Uritsky, Yonathan"]
[Black "Zanan, Evgeny"]
[Result "0-1"]
[ECO "C28"]
[WhiteElo "2236"]
[BlackElo "2485"]
[Annotator "TA"]
[PlyCount "36"]
[EventDate "2022.09.25"]
[EventType "rapid"]
[EventCountry "ISR"]
[SourceTitle "playchess.com"]
[Source "ChessBase"]
[SourceQuality "1"]
[TimeControl "900+5"]

{[%evp 11,35,11,15,13,7,-4,0,0,0,7,12,0,24,36,37,-25,-34,-70,-67,-63,-57,-112,-113,-114,-109,-29999]} 1. e4 {[%emt 0:00:01]} e5 {[%emt 0:00:02]} 2. Nc3 {[%emt 0:00:01]} Nf6 {[%emt 0:00:03]} 3. Bc4 {[%emt 0:00:02]} Nc6 {[%emt 0:00:32]} 4. d3 {[%emt 0:00:01]} Na5 {[%emt 0:00:02]} 5. Nge2 {[%emt 0:00:02]} Nxc4 {[%emt 0:00:18]} 6. dxc4 {[%emt 0:00:01]} Be7 {[%emt 0:00:12]} 7. Qd3 {[%emt 0:00:03] C28: Vienna Game: 2...Nf6 3 Bc4 Nc6.} d6 {[%emt 0:00:02]} 8. Bg5 {[%emt 0:00:03]} Be6 {[%emt 0:00:08]} 9. O-O-O {[%emt 0:00:04] [#] The position is equal.} Ng4 $146 {[%emt 0:02:40][%cal Bf6g4,Bg4e3,Be3c4][%mdl 32]} ({Predecessor:} 9... h6 10. Bxf6 Bxf6 11. Kb1 c6 12. f4 exf4 13. Nxf4 Be5 14. Nxe6 fxe6 15. c5 dxc5 {0-1 (62) Bortnyk,O (2604)-Andreikin,D (2728) Chess.com INT 2021}) 10. Bxe7 {[%emt 0:00:22]} Qxe7 {[%emt 0:00:02]} 11. Qg3 {[%emt 0:00:46][%cal Oc4c5]} Qg5+ {[%emt 0:02:52]} 12. Kb1 {[%emt 0:00:02] [#] And now h3 would win.} h5 {[%emt 0:00:01]} 13. h4 {[%emt 0:00:01]} (13. h3 $14 h4 14. hxg4 hxg3 15. Rxh8+ Kd7 16. f4 (16. Rxa8 $2 {is the wrong capture.} gxf2 17. Ng3 Bxc4 $19)) 13... Qf6 $11 {[%emt 0:00:01]} 14. f3 {[%emt 0:00:52]} Ne3 {[%emt 0:00:12]} 15. Rd3 {[%emt 0:00:02]} Nxc4 {[%emt 0:00:05]} 16. f4 {[%emt 0:00:06]} ({White should try} 16. b3 $15 Na5 17. Nb5) 16... exf4 $17 {[%emt 0:00:22]} 17. Nxf4 {[%emt 0:00:05] [#]} O-O-O $1 {[%emt 0:00:24]} 18. Ncd5 $2 {[%emt 0:00:01][%mdl 8192]} (18. Rf1 $17) 18... Qxb2# {[%emt 0:00:01] Weighted Error Value: White=0.74/Black=0.03 (flawless)} 0-1